bitfinex/quotes_SOLUSD_20241028
["timestamp","ask_amount","ask_price","bid_price","bid_amount"]
[1730088725391,4.20689611,175.22,175.21,0.12549]
[1730088726386,4.20689611,175.22,175.21,9.15153676]
[1730088726786,4.20689611,175.22,175.21,14.85893676]
[1730088727685,9.02604676,175.28,175.21,14.85893676]
[1730088727996,15.14849036,175.27,175.23,9.02604676]
[1730088728201,15.14849036,175.26,175.23,9.02604676]
[1730088728390,8.41598219,175.25,175.23,9.02604676]
[1730088728604,4.20816458,175.24,175.23,9.02604676]
[1730088729786,4.20816458,175.24,175.23,14.73274676]
[1730088729986,4.20816458,175.24,175.23,14.85823676]
[1730088735106,4.21074919,175.24,175.23,14.85823676]
[1730088736211,4.21074919,175.24,175.23,9.15153676]
[1730088737413,4.21074919,175.24,175.23,14.85823676]
[1730088737790,4.21074919,175.24,175.23,34.85823676]
[1730088741301,6.0934,175.3,175.24,0.12549]
[1730088741500,6.0934,175.3,175.25,9.02604676]
[1730088741816,4.20906679,175.29,175.25,9.02604676]
[1730088742014,6.0934,175.3,175.25,9.02604676]
[1730088742311,10.94529072,175.29,175.26,5.7058]
[1730088742608,4.20898653,175.28,175.26,5.7058]
[1730088742998,8.41860916,175.27,175.26,5.7058]
[1730088744016,4.20902444,175.27,175.26,5.7058]
[1730088744413,8.41809144,175.27,175.26,5.7058]
[1730088748620,8.41809144,175.27,175.26,9.02604676]
[1730088749925,8.41809144,175.27,175.26,5.7058]
[1730088750090,8.41794959,175.27,175.26,5.7058]
[1730088750514,4.20911312,175.27,175.26,5.7058]
[1730088750703,8.41809797,175.27,175.26,5.7058]
[1730088751309,8.41809797,175.27,175.25,14.73214676]
[1730088751521,8.41809797,175.26,175.25,14.73214676]
[1730088752400,4.20898485,175.26,175.25,14.73214676]
[1730088752701,8.41803163,175.26,175.25,14.73214676]
[1730088753619,4.20898485,175.26,175.25,14.73214676]
[1730088756428,4.20898485,175.26,175.23,20.0]
[1730088756624,4.20898485,175.25,175.23,25.7067]
[1730088756804,4.20898485,175.24,175.23,34.85823676]
[1730088757321,4.20898485,175.24,175.23,5.7067]
[1730088757696,4.20898485,175.24,175.22,5.7068]
[1730088757893,4.20898485,175.23,175.22,5.7068]
[1730088758622,4.20898485,175.23,175.21,5.7074]
[1730088758838,4.20898485,175.22,175.21,5.7074]
[1730088759820,4.20898485,175.22,175.21,9.02604676]
[1730088760126,4.2085156,175.22,175.21,9.02604676]
[1730088760718,4.2084978,175.22,175.21,9.02604676]
[1730088762245,4.2084978,175.22,175.21,14.73344676]
[1730088762905,4.2084978,175.22,175.21,14.85893676]
[1730088763310,4.2084978,175.22,175.21,34.85893676]
[1730088770609,9.02604676,175.28,175.22,0.12549]
[1730088770924,15.15841724,175.27,175.23,9.02604676]
[1730088771119,15.15841954,175.26,175.23,9.02604676]
[1730088771318,8.4205779,175.25,175.23,9.02604676]
[1730088771515,8.4205779,175.24,175.23,9.02604676]
[1730088771723,8.42156416,175.24,175.23,14.73274676]
[1730088774541,4.21213107,175.24,175.23,14.73274676]
[1730088774835,8.42245948,175.24,175.23,14.73274676]
[1730088778138,14.73094676,175.29,175.23,14.73274676]
[1730088778437,15.16158088,175.28,175.23,14.73274676]
[1730088778745,15.16158088,175.27,175.23,14.73274676]
[1730088778924,15.16158088,175.26,175.23,14.73274676]
[1730088779123,14.73094676,175.29,175.23,14.73274676]
[1730088779124,8.42249713,175.25,175.23,14.73274676]
[1730088779329,8.42249713,175.24,175.23,14.73274676]
[1730088779837,4.21057913,175.24,175.23,14.73274676]
[1730088781442,4.21269502,175.24,175.23,14.73274676]
[1730088782846,4.21510077,175.24,175.23,14.73274676]
[1730088784244,14.73094676,175.29,175.23,14.73274676]
[1730088784541,4.21462912,175.28,175.23,14.73274676]
[1730088784745,8.42967141,175.27,175.23,14.73274676]
[1730088784918,8.42967141,175.26,175.23,14.73274676]
[1730088785123,8.42967141,175.25,175.23,14.73274676]
[1730088785423,4.21504229,175.24,175.23,14.73274676]
[1730088786647,4.21504229,175.24,175.23,34.85823676]
[1730088787645,4.21504229,175.24,175.23,14.85823676]
[1730088787831,4.21504229,175.24,175.23,34.85823676]
[1730088791542,6.0934,175.3,175.24,0.12549]
[1730088791753,4.21790332,175.29,175.26,9.02604676]
[1730088791942,8.4353695,175.29,175.26,9.02604676]
[1730088792251,8.4353695,175.28,175.26,9.02604676]
[1730088792451,8.4353695,175.27,175.26,9.02604676]
[1730088792828,4.21790332,175.27,175.26,29.27702676]
[1730088793034,4.21790332,175.27,175.26,53.05391076]
[1730088793637,4.21790332,175.27,175.26,58.75971076]
[1730088793847,15.9996,175.37,175.26,58.75971076]
[1730088793848,15.9996,175.37,175.27,44.027864]
[1730088794151,4.21773017,175.36,175.34,9.02604676]
[1730088794326,4.21773017,175.35,175.33,9.02604676]
[1730088794527,4.21773017,175.34,175.33,9.02604676]
[1730088794841,4.21773017,175.34,175.33,14.72954676]
[1730088795233,15.9996,175.37,175.33,14.72954676]
[1730088795436,4.21580035,175.34,175.33,14.72954676]
[1730088797239,5.7013,175.4,175.33,14.72954676]
[1730088797436,4.21036206,175.39,175.36,9.02604676]
[1730088797640,4.21036206,175.38,175.36,9.02604676]
[1730088797848,15.9282,175.41,175.37,9.02604676]
[1730088798036,4.21047253,175.4,175.37,9.02604676]
[1730088798239,4.21047253,175.39,175.37,9.02604676]
[1730088798438,15.9282,175.41,175.38,9.02604676]
[1730088798653,4.20797398,175.4,175.38,9.02604676]
[1730088798863,15.9282,175.41,175.38,9.02604676]
[1730088799045,4.20797617,175.39,175.38,9.02604676]
[1730088799238,4.20797617,175.4,175.38,9.02604676]
[1730088799450,15.9282,175.41,175.38,9.02604676]
[1730088799650,4.20537425,175.4,175.38,9.02604676]
[1730088799844,15.9282,175.41,175.38,9.02604676]
[1730088800053,4.20537426,175.4,175.38,9.02604676]
[1730088800353,15.9282,175.41,175.38,9.02604676]
[1730088800532,4.20314075,175.4,175.38,9.02604676]
[1730088800739,15.9282,175.41,175.38,9.02604676]
[1730088801131,15.9282,175.41,175.37,9.02604676]
[1730088802347,15.9282,175.41,175.37,14.72814676]
[1730088803046,12.2047,175.42,175.38,9.02604676]
[1730088806160,14.72624676,175.44,175.39,14.72754676]
[1730088806532,14.72624676,175.44,175.34,16.6115]
[1730088806533,4.19655494,175.43,175.42,14.72664676]
[1730088806736,21.34064676,175.47,175.42,14.72664676]
[1730088806965,4.19700258,175.46,175.42,14.72664676]
[1730088807166,4.19700258,175.45,175.42,5.7006]
[1730088807371,21.34064676,175.47,175.42,5.7006]
[1730088807551,4.19522247,175.46,175.42,5.7006]
[1730088807746,15.64164676,175.47,175.42,5.7006]
[1730088807948,4.19688795,175.46,175.42,14.72664676]
[1730088808180,15.64164676,175.47,175.42,14.72664676]
[1730088808353,6.6156,175.47,175.42,14.72664676]
[1730088808869,6.6156,175.47,175.43,14.72614676]
[1730088809163,9.02604676,175.48,175.43,14.72614676]
[1730088810576,29.93934676,175.49,175.43,9.02604676]
[1730088810872,24.24104676,175.49,175.44,9.02604676]
[1730088811171,5.698,175.5,175.45,9.02604676]
[1730088812272,5.698,175.5,175.45,14.72554676]
[1730088812655,5.6973,175.52,175.46,0.12549]
[1730088812863,5.6973,175.52,175.48,9.02604676]
[1730088813064,5.697,175.53,175.48,9.02604676]
[1730088813457,42.89577619,175.56,175.49,9.02604676]
[1730088813657,42.89577619,175.56,175.5,9.02604676]
[1730088813872,57.61782295,175.56,175.5,9.02604676]
[1730088814188,57.61782295,175.56,175.5,14.72394676]
[1730088815372,9.02604676,175.55,175.5,14.72394676]
[1730088816079,42.45847619,175.56,175.51,9.02604676]
[1730088816397,36.76247619,175.56,175.52,9.02604676]
[1730088817478,36.76247619,175.56,175.53,9.02604676]
[1730088818791,36.76247619,175.56,175.53,14.72274676]
[1730088820279,36.76247619,175.56,175.54,9.02604676]
[1730088823166,0.5966361,175.58,175.54,9.02604676]
[1730088823767,6.2920361,175.58,175.54,9.02604676]
[1730088824884,15.31808286,175.58,175.53,9.02604676]
[1730088826585,15.31808286,175.58,175.53,14.72294676]
[1730088827674,15.31808286,175.58,175.53,9.02604676]
[1730088831488,6.2920361,175.58,175.54,9.02604676]
[1730088834479,6.2920361,175.58,175.55,9.02604676]
[1730088834682,6.2920361,175.58,175.54,9.02604676]
[1730088839668,9.02604676,175.55,175.49,9.02604676]
[1730088840705,5.6967,175.54,175.49,14.72424676]
[1730088840900,5.6967,175.54,175.5,9.02604676]
[1730088842585,14.72274676,175.54,175.49,9.02604676]
[1730088842797,9.02604676,175.53,175.48,25.82389]
[1730088843107,14.72274676,175.54,175.49,9.02604676]
[1730088845081,14.72274676,175.54,175.49,14.72434676]
[1730088848787,9.02604676,175.55,175.49,14.72434676]
[1730088850180,5.6964,175.55,175.5,9.02604676]
[1730088850378,5.6957,175.57,175.52,9.02604676]
[1730088851603,5.6957,175.57,175.52,14.72334676]
[1730088851801,14.72174676,175.57,175.52,14.72334676]
[1730088852408,9.02604676,175.56,175.52,5.6973]
[1730088852604,9.02604676,175.56,175.51,0.12549]
[1730088852913,14.72214676,175.56,175.51,5.82309]
[1730088853512,5.6961,175.56,175.51,14.84913676]
[1730088854406,5.6961,175.56,175.51,9.15153676]
[1730088857415,5.6957,175.57,175.51,9.15153676]
[1730088857708,9.02604676,175.56,175.51,9.15153676]
[1730088857911,9.02604676,175.56,175.5,9.15153676]
[1730088858910,14.72224676,175.56,175.51,5.6976]
[1730088860611,14.72214676,175.56,175.51,14.72364676]
[1730088862203,0.5966361,175.58,175.55,9.02604676]
[1730088863108,0.5966361,175.58,175.55,0.12549]
[1730088864326,0.5966361,175.58,175.55,5.82169]
[1730088865296,0.5966361,175.58,175.55,14.84773676]
[1730088867721,0.5966361,175.58,175.56,9.02604676]
[1730088869908,0.5966361,175.58,175.55,14.84773676]
[1730088871521,0.5966361,175.58,175.55,9.15153676]
[1730088872315,0.5966361,175.58,175.5,6.4495]
[1730088872525,9.62268286,175.58,175.54,20.0]
[1730088873423,15.31808286,175.58,175.54,20.0]
[1730088873921,15.31808286,175.58,175.54,25.6965]
[1730088875518,6.2920361,175.58,175.55,9.02604676]
[1730088875713,6.2920361,175.58,175.54,34.72254676]
[1730088875921,15.31808286,175.58,175.54,25.6965]
[1730088876220,6.2920361,175.58,175.54,34.72254676]
[1730088877307,0.5966361,175.58,175.54,34.72254676]
[1730088877508,0.5966361,175.58,175.54,25.6965]
[1730088877910,0.5966361,175.58,175.54,34.72254676]
[1730088881729,0.5966361,175.58,175.54,25.6965]
[1730088884514,0.5966361,175.58,175.54,34.72254676]
[1730088885808,9.62268286,175.58,175.54,5.6965]
[1730088886225,15.31808286,175.58,175.54,5.6965]
[1730088886430,9.02604676,175.55,175.5,11.64670385]
[1730088886626,9.02604676,175.54,175.5,11.64670385]
[1730088886816,9.02604676,175.53,175.5,5.698]
[1730088887529,9.02604676,175.54,175.49,5.6983]
[1730088890424,9.02604676,175.52,175.46,0.12549]
[1730088890614,9.02604676,175.52,175.48,0.12549]
[1730088890815,9.02604676,175.53,175.48,0.12549]
[1730088891637,9.02604676,175.53,175.48,9.15153676]
[1730088891838,9.02604676,175.53,175.49,20.0]
[1730088893115,9.02604676,175.53,175.5,5.698]
[1730088893830,9.02604676,175.54,175.5,5.698]
[1730088896044,9.02604676,175.53,175.5,5.698]
[1730088898440,9.02604676,175.54,175.5,5.698]
[1730088900527,9.02604676,175.53,175.5,5.698]
[1730088901630,5.6959,175.57,175.5,5.698]
[1730088901939,9.02604676,175.55,175.5,5.698]
[1730088902530,9.02604676,175.54,175.5,5.698]
[1730088903429,9.02604676,175.53,175.5,5.698]
[1730088903628,9.02604676,175.51,175.46,5.951242]
[1730088903838,9.02604676,175.5,175.47,20.12549]
[1730088904232,9.02604676,175.5,175.47,0.12549]
[1730088904732,5.6957,175.57,175.47,0.12549]
[1730088905049,9.02604676,175.51,175.47,0.12549]
[1730088905434,5.6957,175.57,175.48,9.02604676]
[1730088905635,9.02604676,175.53,175.47,29.15153676]
[1730088905842,9.02604676,175.52,175.47,34.85043676]
[1730088906748,9.02604676,175.51,175.47,5.6989]
[1730088906922,9.02604676,175.5,175.47,5.6989]
[1730088907952,9.02604676,175.51,175.47,5.6989]
[1730088908449,9.02604676,175.52,175.47,5.6989]
[1730088908643,9.02604676,175.53,175.48,9.02604676]
[1730088908844,9.02604676,175.54,175.49,9.02604676]
[1730088909431,9.02604676,175.52,175.47,14.72494676]
[1730088911551,9.02604676,175.53,175.47,14.72494676]
[1730088911957,9.02604676,175.53,175.48,9.15153676]
[1730088912261,9.02604676,175.54,175.49,9.02604676]
[1730088913254,9.02604676,175.54,175.5,5.698]
[1730088913435,16.1961361,175.58,175.51,9.02604676]
[1730088913636,14.72174676,175.57,175.51,9.02604676]
[1730088914524,14.72174676,175.57,175.52,5.6973]
[1730088914743,21.8915361,175.58,175.52,14.72334676]
[1730088914960,15.31808286,175.58,175.52,14.72334676]
[1730088915131,9.62268286,175.58,175.53,9.02604676]
[1730088915553,9.62268286,175.58,175.52,14.72334676]
[1730088915952,9.02604676,175.57,175.53,9.02604676]
[1730088916250,0.5966361,175.58,175.52,5.6973]
[1730088916251,9.62268286,175.58,175.52,14.72334676]
[1730088916452,9.02604676,175.57,175.52,14.72334676]
[1730088916949,9.02604676,175.57,175.51,9.02604676]
[1730088917144,9.02604676,175.56,175.51,9.02604676]
[1730088918549,9.02604676,175.56,175.52,5.6973]
[1730088921135,9.02604676,175.56,175.5,9.02604676]
[1730088921334,9.02604676,175.54,175.5,25.698]
[1730088922440,9.02604676,175.55,175.5,34.72404676]
[1730088924154,9.02604676,175.55,175.5,25.698]
[1730088924355,9.02604676,175.53,175.5,5.698]
[1730088925063,9.02604676,175.53,175.47,9.02604676]
[1730088925367,9.02604676,175.51,175.46,34.85083676]
[1730088925741,9.02604676,175.51,175.46,34.72534676]
[1730088926349,9.02604676,175.51,175.47,5.6989]
[1730088926941,9.02604676,175.52,175.47,5.6989]
[1730088929745,9.02604676,175.51,175.47,5.6989]
[1730088930465,9.02604676,175.5,175.47,5.6989]
[1730088930967,9.02604676,175.49,175.47,5.6989]
[1730088931543,9.02604676,175.49,175.46,5.6993]
[1730088933162,9.02604676,175.48,175.45,5.95006939]
[1730088933457,9.02604676,175.47,175.42,0.12549]
[1730088933668,9.02604676,175.47,175.42,6.0778381]
[1730088934465,9.02604676,175.47,175.42,11.7784381]
[1730088935659,9.02604676,175.47,175.42,6.0778381]
[1730088936052,9.02604676,175.47,175.42,15.10388486]
[1730088936559,9.02604676,175.48,175.42,15.10388486]
[1730088936870,9.02604676,175.47,175.42,15.10388486]
[1730088939759,14.72504676,175.47,175.42,5.9523481]
[1730088940263,14.72504676,175.47,175.43,5.7002]
[1730088940446,9.02604676,175.46,175.43,5.7002]
[1730088940645,9.02604676,175.45,175.43,5.7002]
[1730088941048,9.02604676,175.46,175.43,5.7002]
[1730088942966,9.02604676,175.46,175.41,20.0]
[1730088943156,9.02604676,175.45,175.41,20.0]
[1730088943664,9.02604676,175.45,175.4,20.0]
[1730088943865,9.02604676,175.46,175.4,29.02604676]
[1730088945267,9.02604676,175.46,175.41,5.7009]
[1730088950270,5.698,175.5,175.42,9.02604676]
[1730088950457,9.02604676,175.47,175.41,14.72694676]
[1730088952676,9.02604676,175.46,175.41,5.7009]
[1730088952976,9.02604676,175.45,175.41,5.7009]
[1730088955176,9.02604676,175.44,175.41,5.7009]
[1730088955375,9.02604676,175.42,175.41,5.7009]
[1730088956965,9.02604676,175.42,175.39,5.95064635]
[1730088957460,9.02604676,175.41,175.39,5.95064635]
[1730088957662,9.02604676,175.41,175.39,5.7015]
[1730088958659,9.02604676,175.41,175.37,20.12549]
[1730088958855,9.02604676,175.41,175.37,5.7022]
[1730088959082,9.02604676,175.4,175.37,5.7022]
[1730088960561,9.02604676,175.38,175.37,5.7022]
[1730088960761,9.02604676,175.38,175.33,15.7297]
[1730088960973,9.02604676,175.38,175.34,5.7032]
[1730088961581,9.02604676,175.38,175.33,21.67483091]
[1730088961789,9.02604676,175.37,175.33,11.64853091]
[1730088962662,9.02604676,175.37,175.33,5.94513091]
[1730088964183,9.02604676,175.4,175.35,9.02604676]
[1730088964383,9.02604676,175.41,175.35,9.02604676]
[1730088965785,9.02604676,175.41,175.36,5.7025]
[1730088966784,9.02604676,175.4,175.36,5.7025]
[1730088966983,5.7002,175.44,175.36,14.72854676]
[1730088967189,9.02604676,175.42,175.37,9.02604676]
[1730088968087,9.02604676,175.42,175.38,5.7019]
[1730088969571,9.02604676,175.42,175.36,9.02604676]
[1730088969973,9.02604676,175.41,175.36,9.02604676]
[1730088972390,15.8784,175.45,175.37,9.02604676]
[1730088972579,9.02604676,175.45,175.39,9.02604676]
[1730088972776,11.7873,175.47,175.41,9.02604676]
[1730088972777,9.02604676,175.46,175.41,9.02604676]
[1730088972989,6.0883,175.47,175.36,24.027864]
[1730088972990,9.02604676,175.45,175.39,9.02604676]
[1730088973166,9.02604676,175.44,175.39,9.02604676]
[1730088973795,9.02604676,175.44,175.38,9.02604676]
[1730088973971,9.02604676,175.44,175.39,5.7015]
[1730088975295,9.02604676,175.45,175.39,9.02604676]
[1730088976400,9.02604676,175.45,175.41,5.7009]
[1730088977275,9.02604676,175.44,175.41,5.7009]
[1730088977799,9.02604676,175.42,175.36,20.12549]
[1730088977973,9.02604676,175.39,175.36,5.7024]
[1730088978168,9.02604676,175.38,175.35,5.7027]
[1730088978374,9.02604676,175.38,175.32,14.72984676]
[1730088978590,9.02604676,175.38,175.32,20.6753337]
[1730088979200,9.02604676,175.36,175.32,11.64928694]
[1730088980401,9.02604676,175.36,175.34,5.7032]
[1730088981279,9.02604676,175.37,175.34,5.7032]
[1730088985512,9.02604676,175.36,175.34,5.7032]
[1730088986798,9.02604676,175.35,175.33,5.7035]
[1730088986996,9.02604676,175.34,175.33,5.7035]
[1730088987220,9.02604676,175.34,175.28,5.7051]
[1730088987517,9.02604676,175.34,175.3,0.12549]
[1730088988021,9.02604676,175.34,175.31,5.7041]
[1730088988715,9.02604676,175.33,175.31,5.7041]
[1730088989714,9.02604676,175.34,175.28,14.97057407]
[1730088989899,9.02604676,175.34,175.29,20.0]
[1730088990301,9.02604676,175.35,175.29,29.02604676]
[1730088991219,9.02604676,175.36,175.3,9.02604676]
[1730088992010,9.02604676,175.35,175.3,9.02604676]
[1730088992298,9.02604676,175.35,175.31,5.7041]
[1730088994006,9.02604676,175.34,175.29,29.02604676]
[1730088994826,9.02604676,175.33,175.29,20.0]
[1730088995006,9.02604676,175.32,175.29,20.0]
[1730088995517,9.02604676,175.32,175.29,25.7048]
[1730088996199,9.02604676,175.32,175.29,5.7048]
[1730088996518,9.02604676,175.31,175.29,5.7048]
[1730088997136,9.02604676,175.31,175.27,20.0]
[1730088998117,9.02604676,175.32,175.27,25.7054]
[1730088998417,9.02604676,175.32,175.27,34.73144676]
[1730089000817,14.48059,175.38,175.27,34.73144676]
[1730089000818,9.02604676,175.33,175.27,34.73144676]
[1730089004814,5.7025,175.36,175.29,9.02604676]
[1730089005014,29.478784,175.38,175.31,9.02604676]
[1730089005213,9.02604676,175.36,175.31,9.02604676]
[1730089005417,9.02604676,175.36,175.3,9.02604676]
[1730089005622,9.02604676,175.33,175.28,9.02604676]
[1730089005837,9.02604676,175.33,175.29,20.0]
[1730089006035,9.02604676,175.33,175.3,5.7045]
[1730089006832,9.02604676,175.31,175.27,5.7054]
[1730089011331,9.02604676,175.31,175.26,20.0]
[1730089011627,9.02604676,175.3,175.26,25.7058]
[1730089011820,9.02604676,175.3,175.26,5.7058]
[1730089015842,9.02604676,175.31,175.27,5.7054]
[1730089020362,9.02604676,175.3,175.25,14.97148714]
[1730089023243,9.02604676,175.3,175.25,5.94544038]
[1730089023443,9.02604676,175.29,175.26,5.7058]
[1730089023658,9.02604676,175.28,175.25,5.706]
[1730089025461,9.02604676,175.28,175.23,9.02604676]
[1730089025753,9.02604676,175.29,175.23,14.73274676]
[1730089026757,5.7037,175.33,175.25,14.73214676]
[1730089027058,13.25258255,175.32,175.27,9.02604676]
[1730089027235,5.7037,175.33,175.28,9.02604676]
[1730089027236,9.02604676,175.33,175.28,9.02604676]
[1730089027441,9.02604676,175.33,175.25,5.7061]
[1730089027442,24.33114676,175.34,175.29,9.02604676]
[1730089027746,4.22723666,175.33,175.29,9.02604676]
[1730089027947,14.72924676,175.34,175.29,9.02604676]
[1730089028148,4.22750408,175.33,175.29,9.02604676]
[1730089028355,14.72924676,175.34,175.29,9.02604676]
[1730089028541,4.22895835,175.33,175.29,9.02604676]
[1730089028740,14.72924676,175.34,175.29,9.02604676]
[1730089028948,4.22909316,175.33,175.29,5.7045]
[1730089029161,14.72924676,175.34,175.29,5.7045]
[1730089029346,4.22954289,175.33,175.3,9.02604676]
[1730089029542,9.02604676,175.36,175.31,9.02604676]
[1730089029759,4.2301011,175.35,175.31,9.02604676]
[1730089030058,9.02604676,175.36,175.3,9.02604676]
[1730089030256,4.23019834,175.35,175.3,9.02604676]
[1730089030560,9.02604676,175.36,175.31,5.7041]
[1730089030858,4.23169461,175.35,175.31,5.7041]
[1730089031059,9.02604676,175.36,175.31,5.7041]
[1730089031355,4.23270808,175.35,175.31,5.7041]
[1730089031536,4.23270808,175.34,175.31,5.7041]
[1730089031737,9.02604676,175.36,175.31,5.7041]
[1730089031938,4.23276046,175.35,175.31,5.7041]
[1730089032255,4.23276046,175.34,175.31,5.7041]
[1730089032457,9.02604676,175.36,175.31,5.7041]
[1730089032640,5.7022,175.37,175.31,5.7041]
[1730089032641,4.23393678,175.35,175.32,9.02604676]
[1730089032959,9.02604676,175.39,175.34,9.02604676]
[1730089033138,4.23388198,175.38,175.34,9.02604676]
[1730089033340,4.23388198,175.37,175.34,9.02604676]
[1730089033542,4.23388198,175.36,175.34,9.02604676]
[1730089033754,9.02604676,175.39,175.34,9.02604676]
[1730089033935,4.23342579,175.38,175.34,9.02604676]
[1730089034138,4.23342579,175.37,175.34,9.02604676]
[1730089034446,9.02604676,175.4,175.35,9.02604676]
[1730089034644,4.23379947,175.39,175.35,9.02604676]
[1730089034857,4.23379947,175.38,175.34,9.02604676]
[1730089035158,9.02604676,175.4,175.34,9.02604676]
[1730089035455,4.23303069,175.39,175.35,14.72884676]
[1730089035668,9.02604676,175.41,175.36,9.02604676]
[1730089035843,4.23338803,175.4,175.36,9.02604676]
[1730089036038,9.02604676,175.41,175.36,9.02604676]
[1730089036237,4.23176401,175.4,175.36,9.02604676]
[1730089036458,9.02604676,175.41,175.36,9.02604676]
[1730089036650,4.23175442,175.4,175.36,9.02604676]
[1730089036838,9.02604676,175.41,175.36,9.02604676]
[1730089037039,4.23137172,175.4,175.36,9.02604676]
[1730089037256,9.02604676,175.41,175.36,9.02604676]
[1730089037459,4.23024494,175.4,175.37,5.7022]
[1730089037655,9.02604676,175.41,175.37,5.7022]
[1730089037969,4.23024397,175.4,175.37,5.7022]
[1730089038263,9.02604676,175.41,175.37,5.7022]
[1730089038465,4.22918806,175.4,175.35,9.02604676]
[1730089038642,9.02604676,175.39,175.34,20.0]
[1730089038842,9.02604676,175.38,175.34,20.0]
[1730089040067,9.02604676,175.38,175.33,9.02604676]
[1730089040246,9.02604676,175.38,175.3,15.6057]
[1730089040247,9.02604676,175.37,175.32,9.02604676]
[1730089041473,9.02604676,175.38,175.34,5.7032]
[1730089041844,14.72754676,175.39,175.34,5.7032]
[1730089043545,9.02604676,175.41,175.36,9.02604676]
[1730089043771,4.22738423,175.4,175.36,9.02604676]
[1730089043977,9.02604676,175.41,175.36,9.02604676]
[1730089044154,4.22756373,175.4,175.36,9.02604676]
[1730089044349,9.02604676,175.41,175.35,9.02604676]
[1730089044550,4.22682349,175.4,175.35,9.02604676]
[1730089044886,21.2238,175.42,175.37,9.02604676]
[1730089044887,9.02604676,175.42,175.37,9.02604676]
[1730089046570,9.02604676,175.42,175.38,5.7019]
[1730089047960,9.02604676,175.41,175.38,5.7019]
[1730089048158,9.02604676,175.4,175.38,5.7019]
[1730089048351,9.02604676,175.4,175.35,9.02604676]
[1730089052875,9.02604676,175.41,175.36,9.02604676]
[1730089054155,9.02604676,175.4,175.37,5.7022]
[1730089056182,9.02604676,175.4,175.36,5.7025]
[1730089058274,9.02604676,175.41,175.36,5.7025]
[1730089059677,9.02604676,175.41,175.36,9.02604676]
[1730089062756,9.02604676,175.41,175.36,5.7025]
[1730089066379,9.02604676,175.39,175.32,0.12549]
[1730089066586,9.02604676,175.38,175.31,25.93453417]
[1730089066762,9.02604676,175.37,175.32,9.02604676]
[1730089074276,9.02604676,175.36,175.31,20.66468093]
[1730089075365,9.02604676,175.35,175.31,11.63863417]
[1730089075558,9.02604676,175.34,175.31,11.63863417]
[1730089075761,9.02604676,175.34,175.31,5.7041]
[1730089076188,9.02604676,175.34,175.29,20.0]
[1730089077479,9.02604676,175.33,175.28,14.96138944]
[1730089077672,9.02604676,175.32,175.29,5.7047]
[1730089078792,9.02604676,175.32,175.28,5.7051]
[1730089080582,9.02604676,175.3,175.25,5.93621909]
[1730089080769,9.02604676,175.28,175.25,5.93621909]
[1730089080970,9.02604676,175.27,175.23,5.7067]
[1730089081480,9.02604676,175.26,175.23,5.7067]
[1730089082079,9.02604676,175.26,175.21,14.95839564]
[1730089082391,9.02604676,175.26,175.22,5.7071]
[1730089085089,9.02604676,175.27,175.22,5.7071]
[1730089085764,9.02604676,175.25,175.22,5.7071]
[1730089085972,9.02604676,175.23,175.21,5.93234888]
[1730089086175,9.02604676,175.23,175.18,9.02604676]
[1730089086390,6.0191,175.27,175.21,9.02604676]
[1730089086570,9.02604676,175.28,175.22,9.02604676]
[1730089086771,9.02604676,175.28,175.23,9.02604676]
[1730089087174,15.6681,175.29,175.23,9.02604676]
[1730089087374,9.02604676,175.28,175.23,9.02604676]
[1730089087794,24.69414676,175.29,175.23,9.02604676]
[1730089087998,30.39894676,175.29,175.24,5.7064]
[1730089088177,9.02604676,175.28,175.24,5.7064]
[1730089088371,5.7045,175.3,175.24,14.73244676]
[1730089088577,14.73024676,175.31,175.25,9.02604676]
[1730089089999,15.7876,175.34,175.29,9.02604676]
[1730089090201,15.59744676,175.35,175.3,9.02604676]
[1730089090378,9.02604676,175.33,175.28,9.02604676]
[1730089091702,9.02604676,175.33,175.27,9.02604676]
[1730089093101,9.02604676,175.33,175.28,14.73114676]
[1730089093981,9.02604676,175.33,175.28,9.02604676]
[1730089095309,9.02604676,175.33,175.29,5.7048]
[1730089095682,9.02604676,175.34,175.29,5.7048]
[1730089095883,9.02604676,175.33,175.29,5.7048]
[1730089096484,9.02604676,175.34,175.29,5.7048]
[1730089098488,9.02604676,175.32,175.24,0.12549]
[1730089098685,9.02604676,175.32,175.26,29.02604676]
[1730089099203,9.02604676,175.32,175.27,9.02604676]
[1730089099586,9.02604676,175.33,175.28,9.02604676]
[1730089100303,9.02604676,175.32,175.27,5.7054]
[1730089100488,9.02604676,175.31,175.27,5.7054]
[1730089101708,9.02604676,175.31,175.25,9.02604676]
[1730089102498,9.02604676,175.31,175.26,9.02604676]
[1730089103708,9.02604676,175.31,175.27,5.7054]
[1730089105000,9.02604676,175.31,175.26,9.02604676]
[1730089105809,14.72984676,175.32,175.26,9.02604676]
[1730089106194,14.72984676,175.32,175.27,5.7054]